[Event "Titled Tuesday Blitz November 07 Early 2023"]
[White "Zampronha, Wladimir Camilo"]
[Black "Petersson, Kjell"]
[WhiteFideId "2103087"]
[BlackFideId "1705148"]
[WhiteElo "2310"]
[BlackElo "2140"]
[Result "1-0"]
[Round "5"]
[TimeControl "180+1"]
[Date "2023.11.07"]
[WhiteClock "0:01:24"]
[BlackClock "0:00:11"]
[Board "211"]

1. e4 {[%clk 0:02:53]}  c5 {[%clk 0:02:59]} 2. Nf3 {[%clk 0:02:42]}  d6 {[%clk 0:03:00]} 3. d4 {[%clk 0:02:35]}  cxd4 {[%clk 0:03:01]} 4. Nxd4 {[%clk 0:02:33]}  Nf6 {[%clk 0:03:00]} 5. Nc3 {[%clk 0:02:32]}  g6 {[%clk 0:03:00]} 6. Be3 {[%clk 0:02:30]}  Bg7 {[%clk 0:03:00]} 7. f3 {[%clk 0:02:31]}  O-O {[%clk 0:03:00]} 8. Qd2 {[%clk 0:02:31]}  Nc6 {[%clk 0:03:00]} 9. Bc4 {[%clk 0:02:30]}  Nd7 {[%clk 0:03:00]} 10. O-O-O {[%clk 0:02:28]}  Nb6 {[%clk 0:03:00]} 11. Be2 {[%clk 0:02:27]}  Na5 {[%clk 0:02:59]} 12. Bg5 {[%clk 0:02:21]}  Nbc4 {[%clk 0:02:33]} 13. Bxc4 {[%clk 0:02:20]}  Nxc4 {[%clk 0:02:32]} 14. Qe2 {[%clk 0:02:21]}  Nxb2 {[%clk 0:01:56]} 15. Kxb2 {[%clk 0:02:19]}  Bxd4 {[%clk 0:01:55]} 16. Rxd4 {[%clk 0:02:16]}  Qb6+ {[%clk 0:01:56]} 17. Nb5 {[%clk 0:02:11]}  a6 {[%clk 0:01:54]} 18. Bxe7 {[%clk 0:02:10]}  Re8 {[%clk 0:01:46]} 19. Rxd6 {[%clk 0:02:10]}  Qxb5+ {[%clk 0:01:33]} 20. Qxb5 {[%clk 0:02:09]}  axb5 {[%clk 0:01:34]} 21. Bf6 {[%clk 0:02:07]}  Be6 {[%clk 0:01:33]} 22. Ra1 {[%clk 0:02:05]}  Ra6 {[%clk 0:01:31]} 23. Rxa6 {[%clk 0:01:59]}  bxa6 {[%clk 0:01:31]} 24. Rd1 {[%clk 0:01:59]}  Rc8 {[%clk 0:01:29]} 25. Rd6 {[%clk 0:01:56]}  a5 {[%clk 0:01:28]} 26. a3 {[%clk 0:01:55]}  a4 {[%clk 0:01:18]} 27. f4 {[%clk 0:01:40]}  h5 {[%clk 0:01:12]} 28. Rb6 {[%clk 0:01:33]}  Bc4 {[%clk 0:01:08]} 29. f5 {[%clk 0:01:32]}  Re8 {[%clk 0:00:56]} 30. h3 {[%clk 0:01:26]}  gxf5 {[%clk 0:00:49]} 31. exf5 {[%clk 0:01:26]}  Kh7 {[%clk 0:00:39]} 32. g4 {[%clk 0:01:24]}  hxg4 {[%clk 0:00:38]} 33. hxg4 {[%clk 0:01:25]}  Re4 {[%clk 0:00:11]} 34. Rb8 {[%clk 0:01:24]} 1-0


[Site "https://www.chess.com"]

[Event "Titled Tuesday Blitz November 07 Early 2023"]
[White "Djordjevic, Dejan N"]
[Black "LionKing2367890"]
[WhiteFideId "913316"]
[WhiteElo "2057"]
[BlackElo "2251"]
[Result "1-0"]
[Round "5"]
[TimeControl "180+1"]
[Date "2023.11.07"]
[WhiteClock "0:02:23"]
[BlackClock "0:02:08"]
[Board "214"]

1. e4 {[%clk 0:02:55]}  e5 {[%clk 0:02:58]} 2. Nf3 {[%clk 0:02:54]}  Nc6 {[%clk 0:02:58]} 3. Bc4 {[%clk 0:02:54]}  Bc5 {[%clk 0:02:57]} 4. c3 {[%clk 0:02:53]}  Nf6 {[%clk 0:02:57]} 5. d3 {[%clk 0:02:53]}  a6 {[%clk 0:02:56]} 6. O-O {[%clk 0:02:53]}  O-O {[%clk 0:02:56]} 7. Re1 {[%clk 0:02:53]}  Ba7 {[%clk 0:02:56]} 8. Bb3 {[%clk 0:02:52]}  d6 {[%clk 0:02:56]} 9. Nbd2 {[%clk 0:02:52]}  Re8 {[%clk 0:02:56]} 10. Nf1 {[%clk 0:02:52]}  Ne7 {[%clk 0:02:56]} 11. Ng3 {[%clk 0:02:50]}  Ng6 {[%clk 0:02:56]} 12. h3 {[%clk 0:02:50]}  c6 {[%clk 0:02:53]} 13. a4 {[%clk 0:02:42]}  Qc7 {[%clk 0:02:53]} 14. d4 {[%clk 0:02:40]}  Bd7 {[%clk 0:02:43]} 15. Bg5 {[%clk 0:02:37]}  Rad8 {[%clk 0:02:34]} 16. Qd2 {[%clk 0:02:27]}  Bc8 {[%clk 0:02:26]} 17. Bxf6 {[%clk 0:02:27]}  gxf6 {[%clk 0:02:26]} 18. Nh5 {[%clk 0:02:24]}  Qe7 {[%clk 0:02:08]} 19. Qh6 {[%clk 0:02:23]} 1-0


[Site "https://www.chess.com"]

[Event "Titled Tuesday Blitz November 07 Early 2023"]
[White "parintele_chess"]
[Black "abelmat"]
[WhiteElo "2229"]
[BlackElo "1973"]
[Result "1-0"]
[Round "5"]
[TimeControl "180+1"]
[Date "2023.11.07"]
[WhiteClock "0:00:59"]
[BlackClock "0:00:02"]
[Board "216"]

1. d4 {[%clk 0:03:00]}  Nf6 {[%clk 0:03:00]} 2. Bf4 {[%clk 0:02:59]}  d5 {[%clk 0:02:59]} 3. Nf3 {[%clk 0:02:59]}  c5 {[%clk 0:02:56]} 4. e3 {[%clk 0:03:00]}  Nc6 {[%clk 0:02:55]} 5. Nbd2 {[%clk 0:03:00]}  Qb6 {[%clk 0:02:55]} 6. dxc5 {[%clk 0:02:57]}  Qxc5 {[%clk 0:02:55]} 7. Nb3 {[%clk 0:02:56]}  Qb6 {[%clk 0:02:51]} 8. Be2 {[%clk 0:02:48]}  Bf5 {[%clk 0:02:47]} 9. O-O {[%clk 0:02:46]}  e6 {[%clk 0:02:45]} 10. a4 {[%clk 0:02:43]}  h6 {[%clk 0:02:42]} 11. a5 {[%clk 0:02:38]}  Qd8 {[%clk 0:02:38]} 12. a6 {[%clk 0:02:32]}  bxa6 {[%clk 0:02:05]} 13. Rxa6 {[%clk 0:02:30]}  Nb4 {[%clk 0:01:56]} 14. Bb5+ {[%clk 0:02:28]}  Nd7 {[%clk 0:01:41]} 15. Ne5 {[%clk 0:02:05]}  Nxa6 {[%clk 0:01:40]} 16. Bxd7+ {[%clk 0:02:04]}  Qxd7 {[%clk 0:01:39]} 17. Nxd7 {[%clk 0:02:04]}  Kxd7 {[%clk 0:01:39]} 18. Qe2 {[%clk 0:02:00]}  Nc7 {[%clk 0:01:21]} 19. Nd4 {[%clk 0:01:57]}  Bd6 {[%clk 0:00:53]} 20. Bxd6 {[%clk 0:01:57]}  Kxd6 {[%clk 0:00:52]} 21. Nxf5+ {[%clk 0:01:57]}  exf5 {[%clk 0:00:52]} 22. Qd3 {[%clk 0:01:54]}  g6 {[%clk 0:00:49]} 23. c4 {[%clk 0:01:50]}  Ke7 {[%clk 0:00:20]} 24. cxd5 {[%clk 0:01:36]}  Rad8 {[%clk 0:00:18]} 25. Qa3+ {[%clk 0:01:17]}  Kf6 {[%clk 0:00:08]} 26. Qc3+ {[%clk 0:01:07]}  Ke7 {[%clk 0:00:08]} 27. Qxc7+ {[%clk 0:01:03]}  Rd7 {[%clk 0:00:07]} 28. Qe5+ {[%clk 0:00:59]}  Kd8 {[%clk 0:00:05]} 29. Qxh8+ {[%clk 0:00:59]}  Kc7 {[%clk 0:00:02]} 30. Rc1+ {[%clk 0:00:59]} 1-0


[Site "https://www.chess.com"]

[Event "Titled Tuesday Blitz November 07 Early 2023"]
[White "Oparin, Grigoriy"]
[Black "Duda, Jan-Krzysztof"]
[WhiteFideId "24125890"]
[BlackFideId "1170546"]
[WhiteElo "2997"]
[BlackElo "3083"]
[Result "1/2-1/2"]
[Round "6"]
[TimeControl "180+1"]
[Date "2023.11.07"]
[WhiteClock "0:00:17"]
[BlackClock "0:00:09"]
[Board "1"]

1. c4 {[%clk 0:03:00]}  c5 {[%clk 0:02:59]} 2. Nf3 {[%clk 0:03:00]}  Nf6 {[%clk 0:02:59]} 3. Nc3 {[%clk 0:03:01]}  Nc6 {[%clk 0:02:57]} 4. d4 {[%clk 0:03:01]}  cxd4 {[%clk 0:02:58]} 5. Nxd4 {[%clk 0:03:02]}  e6 {[%clk 0:02:58]} 6. e4 {[%clk 0:03:02]}  Bb4 {[%clk 0:02:55]} 7. Nxc6 {[%clk 0:03:02]}  dxc6 {[%clk 0:02:56]} 8. Bd3 {[%clk 0:03:03]}  e5 {[%clk 0:02:54]} 9. O-O {[%clk 0:03:02]}  O-O {[%clk 0:02:53]} 10. h3 {[%clk 0:03:01]}  Qe7 {[%clk 0:02:36]} 11. Na4 {[%clk 0:02:58]}  Rd8 {[%clk 0:02:35]} 12. Qe2 {[%clk 0:02:58]}  Nh5 {[%clk 0:02:21]} 13. a3 {[%clk 0:02:50]}  Ba5 {[%clk 0:02:20]} 14. b4 {[%clk 0:02:24]}  Bc7 {[%clk 0:02:19]} 15. Qxh5 {[%clk 0:02:21]}  Rxd3 {[%clk 0:02:18]} 16. Qe2 {[%clk 0:02:13]}  Rd8 {[%clk 0:02:14]} 17. Be3 {[%clk 0:02:13]}  Qh4 {[%clk 0:01:58]} 18. f3 {[%clk 0:02:11]}  Rd6 {[%clk 0:01:58]} 19. Qf2 {[%clk 0:01:45]}  Qh5 {[%clk 0:01:55]} 20. Rad1 {[%clk 0:01:41]}  Be6 {[%clk 0:01:39]} 21. Rxd6 {[%clk 0:01:38]}  Bxd6 {[%clk 0:01:40]} 22. Rd1 {[%clk 0:01:38]}  Bf8 {[%clk 0:01:36]} 23. Bc5 {[%clk 0:01:15]}  Bxc4 {[%clk 0:01:16]} 24. Bxf8 {[%clk 0:01:15]}  Bb3 {[%clk 0:01:16]} 25. Rd7 {[%clk 0:01:05]}  Bxa4 {[%clk 0:01:13]} 26. Bd6 {[%clk 0:01:01]}  b6 {[%clk 0:00:49]} 27. Re7 {[%clk 0:01:00]}  Qg5 {[%clk 0:00:36]} 28. Qb2 {[%clk 0:00:36]}  f6 {[%clk 0:00:25]} 29. Qa2+ {[%clk 0:00:36]}  Kh8 {[%clk 0:00:25]} 30. Qf7 {[%clk 0:00:33]}  h6 {[%clk 0:00:24]} 31. Rxa7 {[%clk 0:00:31]}  Rxa7 {[%clk 0:00:22]} 32. Qxa7 {[%clk 0:00:32]}  Bd1 {[%clk 0:00:14]} 33. Kh1 {[%clk 0:00:18]}  Qe3 {[%clk 0:00:13]} 34. Bf8 {[%clk 0:00:14]}  Qg5 {[%clk 0:00:12]} 35. Qxb6 {[%clk 0:00:14]}  Ba4 {[%clk 0:00:07]} 36. Qc5 {[%clk 0:00:11]}  Bb5 {[%clk 0:00:06]} 37. Kh2 {[%clk 0:00:10]}  h5 {[%clk 0:00:06]} 38. Qf2 {[%clk 0:00:09]}  Qf4+ {[%clk 0:00:06]} 39. Qg3 {[%clk 0:00:09]}  Qxg3+ {[%clk 0:00:04]} 40. Kxg3 {[%clk 0:00:10]}  Kg8 {[%clk 0:00:05]} 41. Bc5 {[%clk 0:00:10]}  Kf7 {[%clk 0:00:04]} 42. h4 {[%clk 0:00:10]}  g5 {[%clk 0:00:04]} 43. Kh3 {[%clk 0:00:09]}  Kg6 {[%clk 0:00:04]} 44. Bb6 {[%clk 0:00:09]}  Kf7 {[%clk 0:00:03]} 45. Bd8 {[%clk 0:00:10]}  gxh4 {[%clk 0:00:03]} 46. Kxh4 {[%clk 0:00:10]}  Kg6 {[%clk 0:00:04]} 47. Kg3 {[%clk 0:00:10]}  Ba4 {[%clk 0:00:04]} 48. Kf2 {[%clk 0:00:10]}  Bb5 {[%clk 0:00:05]} 49. Ke3 {[%clk 0:00:10]}  h4 {[%clk 0:00:04]} 50. Kf2 {[%clk 0:00:07]}  Kg5 {[%clk 0:00:04]} 51. g3 {[%clk 0:00:07]}  hxg3+ {[%clk 0:00:04]} 52. Kxg3 {[%clk 0:00:08]}  Kg6 {[%clk 0:00:05]} 53. Kf2 {[%clk 0:00:07]}  Kf7 {[%clk 0:00:05]} 54. Ke3 {[%clk 0:00:08]}  Ke6 {[%clk 0:00:05]} 55. Kd2 {[%clk 0:00:08]}  f5 {[%clk 0:00:05]} 56. Bc7 {[%clk 0:00:08]}  fxe4 {[%clk 0:00:05]} 57. fxe4 {[%clk 0:00:09]}  Ba4 {[%clk 0:00:04]} 58. Kc3 {[%clk 0:00:09]}  Bb5 {[%clk 0:00:05]} 59. Bb8 {[%clk 0:00:09]}  Kf6 {[%clk 0:00:05]} 60. Kb3 {[%clk 0:00:08]}  Ke6 {[%clk 0:00:04]} 61. a4 {[%clk 0:00:08]}  Bd3 {[%clk 0:00:05]} 62. a5 {[%clk 0:00:08]}  Bb5 {[%clk 0:00:04]} 63. Kc3 {[%clk 0:00:08]}  Ba6 {[%clk 0:00:04]} 64. Kd2 {[%clk 0:00:09]}  Bb5 {[%clk 0:00:04]} 65. Ke3 {[%clk 0:00:09]}  Kf6 {[%clk 0:00:04]} 66. Bd6 {[%clk 0:00:09]}  Ke6 {[%clk 0:00:04]} 67. Bc5 {[%clk 0:00:10]}  Kf6 {[%clk 0:00:04]} 68. Kf3 {[%clk 0:00:11]}  Ke6 {[%clk 0:00:04]} 69. Kg4 {[%clk 0:00:11]}  Kf6 {[%clk 0:00:04]} 70. Kh5 {[%clk 0:00:11]}  Bd3 {[%clk 0:00:03]} 71. Kh6 {[%clk 0:00:11]}  Bb5 {[%clk 0:00:03]} 72. Kh7 {[%clk 0:00:11]}  Bc4 {[%clk 0:00:04]} 73. Kh8 {[%clk 0:00:12]}  Kf7 {[%clk 0:00:04]} 74. Bd6 {[%clk 0:00:11]}  Bd3 {[%clk 0:00:04]} 75. Bxe5 {[%clk 0:00:07]}  c5 {[%clk 0:00:04]} 76. bxc5 {[%clk 0:00:06]}  Bxe4 {[%clk 0:00:05]} 77. a6 {[%clk 0:00:06]}  Ke6 {[%clk 0:00:05]} 78. Bc7 {[%clk 0:00:06]}  Kd7 {[%clk 0:00:05]} 79. Bb6 {[%clk 0:00:07]}  Bd3 {[%clk 0:00:05]} 80. a7 {[%clk 0:00:07]}  Be4 {[%clk 0:00:06]} 81. Kg7 {[%clk 0:00:08]}  Bc6 {[%clk 0:00:06]} 82. Kf6 {[%clk 0:00:09]}  Be4 {[%clk 0:00:06]} 83. Ke5 {[%clk 0:00:10]}  Bg2 {[%clk 0:00:06]} 84. Kd4 {[%clk 0:00:11]}  Kc8 {[%clk 0:00:06]} 85. Ke5 {[%clk 0:00:12]}  Kb7 {[%clk 0:00:06]} 86. Kd4 {[%clk 0:00:13]}  Ka8 {[%clk 0:00:07]} 87. Ke5 {[%clk 0:00:13]}  Bb7 {[%clk 0:00:07]} 88. Kd4 {[%clk 0:00:14]}  Bc6 {[%clk 0:00:07]} 89. Ke5 {[%clk 0:00:15]}  Bb7 {[%clk 0:00:07]} 90. Kd4 {[%clk 0:00:16]}  Bc6 {[%clk 0:00:08]} 91. Ke5 {[%clk 0:00:17]}  Bb7 {[%clk 0:00:09]} 1/2-1/2


[Site "https://www.chess.com"]

[Event "Titled Tuesday Blitz November 07 Early 2023"]
[White "Carlsen, Magnus"]
[Black "Taher, Yoseph Theolifus"]
[WhiteFideId "1503014"]
[BlackFideId "7105347"]
[WhiteElo "3265"]
[BlackElo "2894"]
[Result "1-0"]
[Round "6"]
[TimeControl "180+1"]
[Date "2023.11.07"]
[WhiteClock "0:01:39"]
[BlackClock "0:00:09"]
[Board "4"]

1. Nf3 {[%clk 0:03:00]}  Nf6 {[%clk 0:02:55]} 2. b3 {[%clk 0:02:59]}  d5 {[%clk 0:02:49]} 3. Bb2 {[%clk 0:02:59]}  Bf5 {[%clk 0:02:50]} 4. Nh4 {[%clk 0:02:58]}  Bc8 {[%clk 0:02:45]} 5. e3 {[%clk 0:02:58]}  c6 {[%clk 0:02:44]} 6. Be2 {[%clk 0:02:57]}  g6 {[%clk 0:02:43]} 7. O-O {[%clk 0:02:56]}  Bg7 {[%clk 0:02:44]} 8. c4 {[%clk 0:02:56]}  O-O {[%clk 0:02:43]} 9. d4 {[%clk 0:02:54]}  a5 {[%clk 0:02:40]} 10. Nc3 {[%clk 0:02:54]}  e6 {[%clk 0:02:39]} 11. Nf3 {[%clk 0:02:53]}  Nbd7 {[%clk 0:02:33]} 12. Qc2 {[%clk 0:02:52]}  Re8 {[%clk 0:02:31]} 13. Rfd1 {[%clk 0:02:49]}  Qe7 {[%clk 0:02:31]} 14. Rac1 {[%clk 0:02:48]}  b6 {[%clk 0:02:15]} 15. cxd5 {[%clk 0:02:48]}  exd5 {[%clk 0:02:15]} 16. Bf1 {[%clk 0:02:46]}  Bb7 {[%clk 0:02:13]} 17. g3 {[%clk 0:02:47]}  Ne4 {[%clk 0:01:57]} 18. Bg2 {[%clk 0:02:42]}  Nxc3 {[%clk 0:01:55]} 19. Bxc3 {[%clk 0:02:41]}  b5 {[%clk 0:01:52]} 20. a3 {[%clk 0:02:34]}  Qxa3 {[%clk 0:01:46]} 21. Ra1 {[%clk 0:02:33]}  Qd6 {[%clk 0:01:46]} 22. Rxa5 {[%clk 0:02:34]}  b4 {[%clk 0:01:40]} 23. Rxa8 {[%clk 0:02:33]}  Rxa8 {[%clk 0:01:41]} 24. Bd2 {[%clk 0:02:34]}  c5 {[%clk 0:01:41]} 25. Rc1 {[%clk 0:02:21]}  Rc8 {[%clk 0:01:35]} 26. Qb1 {[%clk 0:02:16]}  cxd4 {[%clk 0:01:29]} 27. Rxc8+ {[%clk 0:02:15]}  Bxc8 {[%clk 0:01:30]} 28. exd4 {[%clk 0:02:13]}  Nb8 {[%clk 0:01:09]} 29. Qe1 {[%clk 0:02:11]}  Be6 {[%clk 0:00:58]} 30. Bxb4 {[%clk 0:02:10]}  Qb6 {[%clk 0:00:59]} 31. Qc3 {[%clk 0:02:09]}  Nc6 {[%clk 0:00:55]} 32. Bc5 {[%clk 0:02:10]}  Qa6 {[%clk 0:00:55]} 33. Bf1 {[%clk 0:02:03]}  Qa2 {[%clk 0:00:55]} 34. b4 {[%clk 0:02:03]}  Nb8 {[%clk 0:00:46]} 35. b5 {[%clk 0:02:01]}  Nd7 {[%clk 0:00:46]} 36. Qa3 {[%clk 0:01:53]}  Qb1 {[%clk 0:00:42]} 37. Qa8+ {[%clk 0:01:52]}  Bf8 {[%clk 0:00:42]} 38. Bxf8 {[%clk 0:01:44]}  Nxf8 {[%clk 0:00:43]} 39. h4 {[%clk 0:01:44]}  Bh3 {[%clk 0:00:40]} 40. Nd2 {[%clk 0:01:44]}  Qc1 {[%clk 0:00:13]} 41. b6 {[%clk 0:01:44]}  Bc8 {[%clk 0:00:13]} 42. Nb3 {[%clk 0:01:40]}  Qc3 {[%clk 0:00:09]} 43. Nc5 {[%clk 0:01:39]} 1-0


[Site "https://www.chess.com"]

[Event "Titled Tuesday Blitz November 07 Early 2023"]
[White "Andreikin, Dmitry"]
[Black "Makhnev, Denis"]
[WhiteFideId "4158814"]
[BlackFideId "13707647"]
[WhiteElo "3114"]
[BlackElo "2935"]
[Result "1-0"]
[Round "6"]
[TimeControl "180+1"]
[Date "2023.11.07"]
[WhiteClock "0:01:12"]
[BlackClock "0:00:03"]
[Board "5"]

1. d4 {[%clk 0:03:00]}  d5 {[%clk 0:02:59]} 2. c4 {[%clk 0:03:00]}  e6 {[%clk 0:03:00]} 3. Nf3 {[%clk 0:03:00]}  c6 {[%clk 0:03:01]} 4. Nbd2 {[%clk 0:02:54]}  f5 {[%clk 0:02:52]} 5. Ne5 {[%clk 0:02:53]}  Nd7 {[%clk 0:02:51]} 6. Ndf3 {[%clk 0:02:53]}  Ngf6 {[%clk 0:02:45]} 7. a3 {[%clk 0:02:52]}  Nxe5 {[%clk 0:01:43]} 8. Nxe5 {[%clk 0:02:52]}  Nd7 {[%clk 0:01:41]} 9. Bf4 {[%clk 0:02:48]}  Nxe5 {[%clk 0:01:41]} 10. Bxe5 {[%clk 0:02:48]}  Kf7 {[%clk 0:01:42]} 11. cxd5 {[%clk 0:02:31]}  exd5 {[%clk 0:01:39]} 12. e3 {[%clk 0:02:21]}  Bd6 {[%clk 0:01:38]} 13. f4 {[%clk 0:02:22]}  Bxe5 {[%clk 0:01:33]} 14. fxe5 {[%clk 0:02:23]}  Qh4+ {[%clk 0:01:31]} 15. Kd2 {[%clk 0:02:09]}  Rf8 {[%clk 0:01:28]} 16. Bd3 {[%clk 0:02:08]}  f4 {[%clk 0:01:17]} 17. exf4 {[%clk 0:01:53]}  Qxf4+ {[%clk 0:01:16]} 18. Kc3 {[%clk 0:01:53]}  Kg8 {[%clk 0:01:10]} 19. Rf1 {[%clk 0:01:27]}  Qg5 {[%clk 0:00:41]} 20. Bxh7+ {[%clk 0:01:16]}  Kxh7 {[%clk 0:00:41]} 21. Rxf8 {[%clk 0:01:16]}  Bf5 {[%clk 0:00:19]} 22. Rxa8 {[%clk 0:01:12]}  Qe3+ {[%clk 0:00:16]} 23. Kb4 {[%clk 0:01:12]}  b6 {[%clk 0:00:03]} 24. Qh5+ {[%clk 0:01:12]} 1-0


[Site "https://www.chess.com"]

[Event "Titled Tuesday Blitz November 07 Early 2023"]
[White "Bluebaum, Matthias"]
[Black "Zhigalko, Sergei"]
[WhiteFideId "24651516"]
[BlackFideId "13502956"]
[WhiteElo "3069"]
[BlackElo "2896"]
[Result "1-0"]
[Round "6"]
[TimeControl "180+1"]
[Date "2023.11.07"]
[WhiteClock "0:01:00"]
[BlackClock "0:00:02"]
[Board "7"]

1. d4 {[%clk 0:03:00]}  Nf6 {[%clk 0:03:00]} 2. c4 {[%clk 0:03:01]}  e6 {[%clk 0:03:00]} 3. Nc3 {[%clk 0:03:02]}  Bb4 {[%clk 0:03:00]} 4. e3 {[%clk 0:03:03]}  O-O {[%clk 0:02:59]} 5. Bd2 {[%clk 0:03:03]}  b6 {[%clk 0:02:52]} 6. Nf3 {[%clk 0:03:04]}  Bb7 {[%clk 0:02:52]} 7. Bd3 {[%clk 0:03:04]}  d6 {[%clk 0:02:44]} 8. O-O {[%clk 0:03:04]}  Re8 {[%clk 0:02:39]} 9. a3 {[%clk 0:03:05]}  Bxc3 {[%clk 0:02:39]} 10. Bxc3 {[%clk 0:03:06]}  Ne4 {[%clk 0:02:36]} 11. Be1 {[%clk 0:03:02]}  Nd7 {[%clk 0:02:35]} 12. Kh1 {[%clk 0:03:02]}  f5 {[%clk 0:02:27]} 13. Ng1 {[%clk 0:03:01]}  Qg5 {[%clk 0:02:18]} 14. f3 {[%clk 0:02:54]}  Nef6 {[%clk 0:02:15]} 15. Qe2 {[%clk 0:02:53]}  e5 {[%clk 0:02:07]} 16. d5 {[%clk 0:02:51]}  e4 {[%clk 0:01:47]} 17. fxe4 {[%clk 0:02:47]}  fxe4 {[%clk 0:01:41]} 18. Bc2 {[%clk 0:02:47]}  Ne5 {[%clk 0:01:36]} 19. Nh3 {[%clk 0:02:47]}  Qh6 {[%clk 0:01:33]} 20. Nf4 {[%clk 0:02:38]}  Bc8 {[%clk 0:01:26]} 21. Bg3 {[%clk 0:02:33]}  Bg4 {[%clk 0:01:21]} 22. Qd2 {[%clk 0:02:32]}  Re7 {[%clk 0:01:04]} 23. Qc3 {[%clk 0:02:32]}  Rf8 {[%clk 0:01:00]} 24. Rae1 {[%clk 0:02:28]}  Nd3 {[%clk 0:00:54]} 25. Nxd3 {[%clk 0:02:19]}  exd3 {[%clk 0:00:49]} 26. Qxd3 {[%clk 0:02:20]}  Ne4 {[%clk 0:00:40]} 27. Rxf8+ {[%clk 0:02:19]}  Kxf8 {[%clk 0:00:41]} 28. Rf1+ {[%clk 0:02:19]}  Kg8 {[%clk 0:00:36]} 29. Be1 {[%clk 0:02:07]}  Qh5 {[%clk 0:00:25]} 30. Qd4 {[%clk 0:02:03]}  Bf5 {[%clk 0:00:19]} 31. Kg1 {[%clk 0:01:59]}  Bg6 {[%clk 0:00:16]} 32. Qd1 {[%clk 0:01:49]}  Qxd1 {[%clk 0:00:12]} 33. Bxd1 {[%clk 0:01:50]}  Nc5 {[%clk 0:00:13]} 34. Bg4 {[%clk 0:01:45]}  h5 {[%clk 0:00:12]} 35. Bf3 {[%clk 0:01:30]}  Bd3 {[%clk 0:00:07]} 36. Rf2 {[%clk 0:01:26]}  Bxc4 {[%clk 0:00:08]} 37. Rc2 {[%clk 0:01:21]}  Bd3 {[%clk 0:00:07]} 38. Rc3 {[%clk 0:01:20]}  Bg6 {[%clk 0:00:07]} 39. Bh4 {[%clk 0:01:20]}  Rf7 {[%clk 0:00:05]} 40. Rc4 {[%clk 0:01:13]}  Bd3 {[%clk 0:00:05]} 41. Rd4 {[%clk 0:01:13]}  Bg6 {[%clk 0:00:04]} 42. b4 {[%clk 0:01:11]}  Nd3 {[%clk 0:00:05]} 43. Bg3 {[%clk 0:01:04]}  Ne5 {[%clk 0:00:05]} 44. Bxe5 {[%clk 0:01:05]}  dxe5 {[%clk 0:00:06]} 45. Rc4 {[%clk 0:01:06]}  Bd3 {[%clk 0:00:05]} 46. Rc1 {[%clk 0:01:02]}  h4 {[%clk 0:00:05]} 47. Bg4 {[%clk 0:01:00]}  Kf8 {[%clk 0:00:05]} 48. Be6 {[%clk 0:01:00]}  Rf6 {[%clk 0:00:04]} 49. h3 {[%clk 0:00:59]}  c5 {[%clk 0:00:02]} 50. bxc5 {[%clk 0:00:58]}  bxc5 {[%clk 0:00:02]} 51. Rxc5 {[%clk 0:00:59]}  Rf1+ {[%clk 0:00:03]} 52. Kh2 {[%clk 0:01:00]}  Rf2 {[%clk 0:00:02]} 53. d6 {[%clk 0:01:00]}  Be4 {[%clk 0:00:02]} 54. Rc8# {[%clk 0:01:00]} 1-0


[Site "https://www.chess.com"]

[Event "Titled Tuesday Blitz November 07 Early 2023"]
[White "Le, Quang Liem"]
[Black "Talibov, Shiroghlan"]
[WhiteFideId "12401137"]
[BlackFideId "13429078"]
[WhiteElo "3052"]
[BlackElo "2901"]
[Result "1-0"]
[Round "6"]
[TimeControl "180+1"]
[Date "2023.11.07"]
[WhiteClock "0:00:13"]
[BlackClock "0:00:00"]
[Board "8"]

1. Nf3 {[%clk 0:03:00]}  Nf6 {[%clk 0:02:59]} 2. c4 {[%clk 0:03:00]}  e6 {[%clk 0:02:53]} 3. Nc3 {[%clk 0:03:00]}  d5 {[%clk 0:02:53]} 4. e3 {[%clk 0:03:00]}  b6 {[%clk 0:02:51]} 5. b3 {[%clk 0:02:59]}  Bb7 {[%clk 0:02:52]} 6. Bb2 {[%clk 0:03:00]}  Nbd7 {[%clk 0:02:52]} 7. Rc1 {[%clk 0:02:57]}  a6 {[%clk 0:02:53]} 8. cxd5 {[%clk 0:02:57]}  exd5 {[%clk 0:02:53]} 9. Ne2 {[%clk 0:02:53]}  g6 {[%clk 0:02:52]} 10. g3 {[%clk 0:02:41]}  Bg7 {[%clk 0:02:52]} 11. Bg2 {[%clk 0:02:42]}  O-O {[%clk 0:02:53]} 12. O-O {[%clk 0:02:40]}  Re8 {[%clk 0:02:53]} 13. b4 {[%clk 0:02:40]}  c5 {[%clk 0:02:51]} 14. bxc5 {[%clk 0:02:35]}  bxc5 {[%clk 0:02:52]} 15. d3 {[%clk 0:02:34]}  Nh5 {[%clk 0:02:35]} 16. Qc2 {[%clk 0:02:27]}  Rc8 {[%clk 0:02:30]} 17. Rfd1 {[%clk 0:02:26]}  Bc6 {[%clk 0:02:23]} 18. Bxg7 {[%clk 0:02:19]}  Nxg7 {[%clk 0:02:22]} 19. Nd2 {[%clk 0:02:20]}  Ne6 {[%clk 0:02:20]} 20. Nb3 {[%clk 0:02:16]}  a5 {[%clk 0:02:13]} 21. a4 {[%clk 0:02:00]}  Bxa4 {[%clk 0:01:40]} 22. Bxd5 {[%clk 0:01:50]}  Ne5 {[%clk 0:01:40]} 23. Nc3 {[%clk 0:01:49]}  Bc6 {[%clk 0:01:34]} 24. Bxc6 {[%clk 0:01:32]}  Rxc6 {[%clk 0:01:35]} 25. Ra1 {[%clk 0:01:27]}  Ra6 {[%clk 0:01:34]} 26. Ne4 {[%clk 0:01:17]}  Qa8 {[%clk 0:00:57]} 27. Nbd2 {[%clk 0:00:58]}  Rd8 {[%clk 0:00:51]} 28. Qc3 {[%clk 0:00:58]}  Nd7 {[%clk 0:00:36]} 29. Nc4 {[%clk 0:00:57]}  f5 {[%clk 0:00:34]} 30. Ned2 {[%clk 0:00:55]}  Ng5 {[%clk 0:00:34]} 31. h4 {[%clk 0:00:46]}  Nh3+ {[%clk 0:00:32]} 32. Kf1 {[%clk 0:00:47]}  Qh1+ {[%clk 0:00:29]} 33. Ke2 {[%clk 0:00:47]}  Qg2 {[%clk 0:00:29]} 34. Rf1 {[%clk 0:00:48]}  Re6 {[%clk 0:00:29]} 35. Qb3 {[%clk 0:00:36]}  Rde8 {[%clk 0:00:26]} 36. Rxa5 {[%clk 0:00:34]}  f4 {[%clk 0:00:25]} 37. Ne4 {[%clk 0:00:32]}  Ng1+ {[%clk 0:00:18]} 38. Rxg1 {[%clk 0:00:32]}  f3+ {[%clk 0:00:18]} 39. Kd2 {[%clk 0:00:33]}  Qxg1 {[%clk 0:00:18]} 40. Ncd6 {[%clk 0:00:31]}  Kg7 {[%clk 0:00:11]} 41. Nxe8+ {[%clk 0:00:31]}  Rxe8 {[%clk 0:00:11]} 42. Ra7 {[%clk 0:00:31]}  Re7 {[%clk 0:00:07]} 43. Qb5 {[%clk 0:00:26]}  Kh6 {[%clk 0:00:05]} 44. Rxd7 {[%clk 0:00:26]}  Rxe4 {[%clk 0:00:06]} 45. dxe4 {[%clk 0:00:23]}  Qxf2+ {[%clk 0:00:06]} 46. Kd1 {[%clk 0:00:23]}  Qg1+ {[%clk 0:00:05]} 47. Kc2 {[%clk 0:00:23]}  f2 {[%clk 0:00:03]} 48. Qb7 {[%clk 0:00:17]}  Kh5 {[%clk 0:00:03]} 49. Rxh7+ {[%clk 0:00:17]}  Kg4 {[%clk 0:00:03]} 50. Qd7+ {[%clk 0:00:14]}  Kxg3 {[%clk 0:00:02]} 51. Rg7 {[%clk 0:00:14]}  Kh2 {[%clk 0:00:01]} 52. Qd6+ {[%clk 0:00:14]}  Kh1 {[%clk 0:00:01]} 53. Rf7 {[%clk 0:00:13]}  f1=Q {[%clk 0:00:02]} 54. Rxf1 {[%clk 0:00:14]}  Qxf1 {[%clk 0:00:03]} 55. Qxc5 {[%clk 0:00:15]}  Qe2+ {[%clk 0:00:03]} 56. Kc3 {[%clk 0:00:15]}  Qf2 {[%clk 0:00:02]} 57. Qg5 {[%clk 0:00:14]}  Qf7 {[%clk 0:00:02]} 58. e5 {[%clk 0:00:14]}  Qd5 {[%clk 0:00:01]} 59. Qf4 {[%clk 0:00:14]}  Qc5+ {[%clk 0:00:02]} 60. Kd3 {[%clk 0:00:14]}  Qd5+ {[%clk 0:00:02]} 61. Ke2 {[%clk 0:00:14]}  Qa2+ {[%clk 0:00:02]} 62. Kd3 {[%clk 0:00:12]}  Qd5+ {[%clk 0:00:02]} 63. Qd4 {[%clk 0:00:13]}  Qb5+ {[%clk 0:00:02]} 64. Ke4 {[%clk 0:00:13]}  Kg2 {[%clk 0:00:02]} 65. Kf4 {[%clk 0:00:13]}  Qb6 {[%clk 0:00:00]} 66. Qxb6 {[%clk 0:00:13]} 1-0


[Site "https://www.chess.com"]